fUST/lending_fUST_20251229
["ID","MTS","AMOUNT","RATE_DAILY","PERIOD"]
[400016620,1767022238637,-4677.93414552,0.00018048,2]
[400016641,1767022240805,-601.95017133,0.00018048,2]
[400016708,1767022246271,-236.39129177,0.00018048,2]
[400016709,1767022246281,-151.5,0.000181,2]
[400016710,1767022246290,-151.5,0.000181,3]
[400016711,1767022246299,-4223.1318081,0.00018676,2]
[400016712,1767022246308,-580.76,0.00018776,2]
[400016713,1767022246317,-196.626,0.00018776,2]
[400016714,1767022246326,-467.87016833,0.00018776,2]
[400016715,1767022246335,-500.0,0.00018776,2]
[400016716,1767022246344,-500.0,0.00018776,2]
[400016717,1767022246353,-500.0,0.00018776,2]
[400016718,1767022246362,-191.10080977,0.00018776,2]
[400016719,1767022246372,-177.50911783,0.00018776,2]
[400016720,1767022246381,-25371.53846577,0.00018777,3]
[400016725,1767022442151,150.0,6.559e-05,2]
[400016726,1767022478587,319.70872231,0.00013169,2]
[400016727,1767022593229,-500.0,0.00013273,2]
[400016728,1767022593252,-500.0,0.00013273,2]
[400016729,1767022593277,-500.0,0.00013273,2]
[400016731,1767022648990,277.67,0.0001,2]
[400016732,1767022926429,1793.48467589,0.00013169,2]
[400016733,1767022932604,100531.0,0.00028767,120]
[400016735,1767023250113,1455.28954561,0.00027,120]
[400016736,1767023269710,-500.0,0.00013273,2]
[400016737,1767023269730,-500.0,0.00013273,2]
[400016738,1767023269740,-500.0,0.00013273,2]
[400016739,1767023274065,-219.37507616,0.00013273,2]
[400016740,1767023274096,-453.24984768,0.00013273,2]
[400016741,1767023274109,-154.75015232,0.00013273,2]
[400016742,1767023274118,-64.62492384,0.00013699,2]
[400016743,1767023274129,-608.0,0.00013699,2]
[400016744,1767023275892,-368.84019226,0.00013699,2]
[400016745,1767023275922,-262.31961548,0.00013699,2]
[400016746,1767023275935,-237.68038452,0.00013699,2]
[400016747,1767023275944,-131.15980774,0.00013699,2]
[400016748,1767023275956,-368.84019226,0.00013699,2]
[400016749,1767023275965,-131.15980774,0.00013699,2]
[400016750,1767023288292,-468.07131625,0.00013699,2]
[400016751,1767023288325,-63.8573675,0.00013699,2]
[400016752,1767023288352,-436.1426325,0.00013699,2]
[400016753,1767023288364,-31.92868375,0.00013699,2]
[400016754,1767023288377,-468.07131625,0.00013699,2]
[400016755,1767023288387,-31.92868375,0.00013699,2]
[400016790,1767023291984,-468.07131625,0.00013699,2]
[400016791,1767023292016,-171.64607,0.00013821,2]
[400016792,1767023292037,-300.0,0.00013972,2]
[400016794,1767023292047,-168.07131625,0.00013972,2]
[400016795,1767023292066,-131.92868375,0.00013972,2]
[400016796,1767023292076,-39.71738625,0.00013972,2]
[400016797,1767023292087,-220.5652275,0.00013972,2]
[400016901,1767023432226,-39.71738625,0.00013972,2]
[400016902,1767023432237,-300.0,0.00013972,2]
[400016904,1767023432246,-143.04147809,0.00013972,2]
[400016905,1767023432295,-156.95852191,0.00013972,2]
[400016906,1767023432304,-300.0,0.00013972,2]
[400016907,1767023432314,-300.0,0.00013972,2]
[400016908,1767023432323,-188.51005791,0.00013972,2]
[400016917,1767023438907,-111.48994209,0.00013972,2]
[400016918,1767023438917,-300.0,0.00013972,2]
[400016919,1767023438927,-300.0,0.00013972,2]
[400016920,1767023438936,-300.0,0.00013972,2]
[400016921,1767023438946,-300.0,0.00013972,2]
[400016922,1767023438955,-219.79259667,0.00013972,2]
[400016923,1767023438966,-80.20740333,0.00013972,2]
[400016924,1767023438976,-300.0,0.00013972,2]
[400016925,1767023438985,-300.0,0.00013972,2]
[400016926,1767023438994,-303.49017672,0.00014247,2]
[400016927,1767023439003,-258.86258986,0.00015273,2]
[400016928,1767023439012,-203.769691,0.00015496,2]
[400016929,1767023439021,-69.68510639,0.00017273,2]
[400016930,1767023439036,-228.66499718,0.00017273,2]
[400016931,1767023439046,-55442.26165086,0.000178,3]
[400016932,1767023439055,-5478.2747108,0.00017838,2]
[400016933,1767023439066,-766553.36062593,0.00017846,2]
[400016934,1767023439075,-1058.3,0.00017938,3]
[400016935,1767023439085,-529.15,0.00017938,3]
[400016936,1767023439095,-264.58,0.00017938,3]
[400016937,1767023439104,-793.76,0.00017938,3]
[400016938,1767023439114,-500.0,0.00017945,2]
[400016939,1767023439124,-500.0,0.00017945,2]
[400016940,1767023439133,-467.7909228,0.00017945,2]
[400016941,1767023439142,-578.55078283,0.00017946,2]
[400016942,1767023439152,-4195.49136635,0.00017946,2]
[400016943,1767023439161,-196.627,0.00017947,2]
[400016944,1767023439171,-419.34,0.00017947,2]
[400016945,1767023439181,-796.8678,0.00018046,2]
[400016946,1767023439190,-500.0,0.00018047,2]
[400016947,1767023439199,-500.0,0.00018047,2]
[400016948,1767023439208,-602.43,0.00018047,2]
[400016949,1767023439218,-220.2398701,0.00018048,2]
[400016950,1767023439227,-600.0,0.00018296,2]
[400016951,1767023439236,-4913.9120478,0.00018329,2]
[400016952,1767023439246,-412.346,0.00018375,2]
[400016953,1767023439256,-2189.40471353,0.00018455,2]
[400016954,1767023439266,-511.31418948,0.00018776,2]
[400016955,1767023439275,-500.0,0.00018776,2]
[400016956,1767023439284,-602.43,0.00018776,2]
[400016957,1767023439293,-602.43,0.00018776,2]
[400016958,1767023439302,-602.43,0.00018776,2]
[400016959,1767023439311,-27721.11,0.00018776,3]
[400016960,1767023439320,-602.43,0.00018877,2]
[400016961,1767023439329,-27721.11,0.00018878,3]
[400016962,1767023439339,-474.36,0.00019052,2]
[400016963,1767023439348,-602.43,0.00019075,2]
[400016964,1767023439357,-602.43,0.00019076,2]
[400016965,1767023439366,-602.43,0.00019076,2]
[400016966,1767023439375,-602.43,0.00019076,2]
[400016967,1767023439384,-602.43,0.00019076,2]
[400016968,1767023439393,-602.43,0.00019076,2]
[400016969,1767023439402,-602.43,0.00019076,2]
[400016970,1767023439412,-602.43,0.00019076,2]
[400016971,1767023439421,-602.43,0.00019076,2]
[400016972,1767023439430,-602.43,0.00019076,2]
[400016973,1767023439439,-602.43,0.00019076,2]
[400016974,1767023439448,-602.43,0.00019076,2]
[400016975,1767023439458,-602.43,0.00019076,2]
[400016976,1767023439467,-602.43,0.00019076,2]
[400016977,1767023439476,-602.43,0.00019076,2]
[400016978,1767023439485,-602.43,0.00019076,2]
[400016979,1767023439494,-602.43,0.00019076,2]
[400016980,1767023439504,-602.43,0.00019076,2]
[400016981,1767023439513,-602.5349749,0.00019076,2]
[400016982,1767023439522,-10000.0,0.00019078,2]
[400016983,1767023439532,-151.5,0.000191,4]
[400016984,1767023439541,-151.0,0.000191,2]
[400016985,1767023439551,-151.0,0.000191,2]
[400016986,1767023439561,-256.964808,0.00019178,2]
[400016987,1767023439570,-7629.338496,0.00019178,2]
[400016988,1767023439579,-2714.33860453,0.00019178,2]
[400016989,1767023439588,-515.43639332,0.00019178,2]
[400016990,1767023439598,-500.0,0.00019178,2]
[400016991,1767023439608,-333.76916282,0.00019178,2]
[400016992,1767023439618,-356.83985831,0.00019178,2]
[400016993,1767023439628,-330.97691951,0.00019178,2]
[400016994,1767023439637,-494.87889882,0.00019178,2]
[400016995,1767023439647,-169.7444623,0.00019178,2]
[400016996,1767023439656,-482.52139185,0.00019178,2]
[400016997,1767023439666,-1000.0,0.00019178,2]
[400016998,1767023439675,-269.01977505,0.00019178,2]
[400016999,1767023439685,-243.60402505,0.00019178,2]
[400017000,1767023439694,-361.51873115,0.00019178,2]
[400017001,1767023439703,-240.09370217,0.00019178,2]
[400017002,1767023439713,-486.31154178,0.00019178,2]
[400017003,1767023439722,-177.90735047,0.00019178,2]
[400017004,1767023439732,-500.0,0.00019178,2]
[400017005,1767023439742,-488.92415349,0.00019178,2]
[400017006,1767023439751,-497.87877484,0.00019178,2]
[400017007,1767023439760,-209.08726671,0.00019178,2]
[400017008,1767023439770,-227.78362903,0.00019178,2]
[400017009,1767023439779,-237.34653622,0.00019178,2]
[400017010,1767023439788,-392.55406506,0.00019178,2]
[400017011,1767023439797,-415.47903261,0.00019178,2]
[400017012,1767023439807,-296.20535928,0.00019178,2]
[400017013,1767023439816,-289.73431471,0.00019178,2]
[400017014,1767023439825,-566.74984132,0.00019178,2]
[400017015,1767023439835,-197.12896296,0.00019178,2]
[400017016,1767023439844,-244.31159298,0.00019178,2]
[400017017,1767023439854,-246.82914686,0.00019178,2]
[400017018,1767023439864,-415.36593718,0.00019178,2]
[400017019,1767023439873,-284.44472802,0.00019178,2]
[400017020,1767023439883,-438.8658737,0.00019178,2]
[400017021,1767023439892,-216.23520641,0.00019178,2]
[400017022,1767023439901,-241.72242359,0.00019178,2]
[400017023,1767023439911,-210.12873179,0.00019178,2]
[400017024,1767023439920,-447.58246298,0.00019178,2]
[400017025,1767023439930,-474.13507893,0.00019178,2]
[400017026,1767023439939,-158.60174501,0.00019178,2]
[400017027,1767023439948,-469.4075144,0.00019178,2]
[400017028,1767023439958,-174.63658247,0.00019178,2]
[400017029,1767023439967,-312.71171079,0.00019178,2]
[400017030,1767023439976,-395.12698527,0.00019178,2]
[400017031,1767023439986,-268.81198579,0.00019178,2]
[400017032,1767023439996,-239.67666409,0.00019178,2]
[400017033,1767023440006,-500.0,0.00019178,2]
[400017034,1767023440016,-241.0507779,0.00019178,2]
[400017035,1767023440027,-500.0,0.00019178,2]
[400017036,1767023440037,-490.74108158,0.00019178,2]
[400017037,1767023440046,-469.94931329,0.00019178,2]
[400017038,1767023440056,-260.5348626,0.00019178,2]
[400017039,1767023440067,-407.85844134,0.00019178,2]
[400017040,1767023440076,-328.30768993,0.00019178,2]
[400017041,1767023440085,-407.86933882,0.00019178,2]
[400017042,1767023440095,-568.76309973,0.00019178,2]
[400017043,1767023440105,-191.35979133,0.00019178,2]
[400017044,1767023440114,-183.26107061,0.00019178,2]
[400017045,1767023440123,-500.0,0.00019178,2]
[400017046,1767023440132,-201.43304431,0.00019178,2]
[400017047,1767023440142,-243.54881724,0.00019178,2]
[400017049,1767023440152,-499.53568973,0.00019178,2]
[400017051,1767023440161,-500.0,0.00019178,2]
[400017053,1767023440171,-488.54130711,0.00019178,2]
[400017055,1767023440180,-163.25279806,0.00019178,2]
[400017057,1767023440189,-314.06516067,0.00019178,2]
[400017058,1767023440198,-460.17636895,0.00019178,2]
[400017059,1767023440208,-517.85628227,0.00019178,2]
[400017060,1767023440217,-280.07760729,0.00019178,2]
[400017062,1767023440227,-164.63967481,0.00019178,2]
[400017064,1767023440236,-494.38316648,0.00019178,2]
[400017066,1767023440245,-594.68,0.00019178,2]
[400017067,1767023440255,-161.69636147,0.00019178,2]
[400017068,1767023440266,-476.00274667,0.00019178,2]
[400017069,1767023440275,-262.92534721,0.00019178,2]
[400017070,1767023440287,-234.48823972,0.00019178,2]
[400017071,1767023440297,-347.21846073,0.00019178,2]
[400017072,1767023440306,-269.57121711,0.00019178,2]
[400017074,1767023440315,-203.24190717,0.00019178,2]
[400017076,1767023440324,-406.89272503,0.00019178,2]
[400017090,1767023440484,-251.37829777,0.00019178,2]
[400017091,1767023440495,-451.7193611,0.00019178,2]
[400017092,1767023440505,-381.44270376,0.00019178,2]
[400017093,1767023440515,-467.99356264,0.00019178,2]
[400017094,1767023440524,-202.31376663,0.00019178,2]
[400017095,1767023440534,-319.68433654,0.00019178,2]
[400017096,1767023440543,-500.0,0.00019178,2]
[400017097,1767023440553,-1000.0,0.00019178,2]
[400017098,1767023440563,-465.19135142,0.00019178,2]
[400017099,1767023440572,-736.92,0.00019178,2]
[400017100,1767023440581,-836.09,0.00019178,2]
[400017101,1767023440591,-374.95658771,0.00019178,2]
[400017102,1767023440600,-500.0,0.00019178,2]
[400017103,1767023440610,-309.43647054,0.00019178,2]
[400017104,1767023440619,-367.57,0.00019178,2]
[400017105,1767023440628,-500.0,0.00019178,2]
[400017106,1767023440638,-213.06669978,0.00019178,2]
[400017107,1767023440647,-186.64044942,0.00019178,2]
[400017108,1767023440656,-434.87120027,0.00019178,2]
[400017109,1767023440668,-164.72537935,0.00019178,2]
[400017110,1767023440678,-420.40948282,0.00019178,2]
[400017111,1767023440688,-1154.01,0.00019178,2]
[400017112,1767023440697,-499.59276763,0.00019178,2]
[400017114,1767023440707,-230.94001368,0.00019178,2]
[400017115,1767023440717,-206.2591174,0.00019178,2]
[400017116,1767023440726,-445.80989693,0.00019178,2]
[400017117,1767023440740,-351.67604569,0.00019178,2]
[400017118,1767023440750,-327.42795179,0.00019178,2]
[400017119,1767023440758,-470.89585768,0.00019178,2]
[400017120,1767023440768,-217.86653738,0.00019178,2]
[400017121,1767023440776,-266.12580852,0.00019178,2]
[400017122,1767023440785,-249.9681414,0.00019178,2]
[400017123,1767023440794,-454.77996909,0.00019178,2]
[400017124,1767023440802,-208.37773591,0.00019178,2]
[400017125,1767023440811,-296.36211743,0.00019178,2]
[400017126,1767023440820,-500.0,0.00019178,2]
[400017127,1767023440829,-460.4,0.00019178,2]
[400017128,1767023440839,-363.91423782,0.00019178,2]
[400017129,1767023440848,-501.89029961,0.00019178,2]
[400017130,1767023440857,-419.94997901,0.00019178,2]
[400017131,1767023440867,-281.13326683,0.00019178,2]
[400017132,1767023440876,-276.4405767,0.00019178,2]
[400017133,1767023440887,-441.60555769,0.00019178,2]
[400017134,1767023440898,-320.64526273,0.00019178,2]
[400017135,1767023440909,-189.07333693,0.00019178,2]
[400017136,1767023440919,-181.669416,0.00019178,2]
[400017137,1767023440930,-229.88879352,0.00019178,2]
[400017138,1767023440939,-500.0,0.00019178,2]
[400017139,1767023440948,-500.0,0.00019178,2]
[400017140,1767023440956,-474.25212021,0.00019178,2]
[400017141,1767023440964,-464.38811206,0.00019178,2]
[400017142,1767023440973,-322.21446513,0.00019178,2]
[400017143,1767023440983,-500.0,0.00019178,2]
[400017144,1767023440992,-471.79543403,0.00019178,2]
[400017145,1767023441002,-312.19237023,0.00019178,2]
[400017146,1767023441011,-449.40365979,0.00019178,2]
[400017147,1767023441021,-293.1369972,0.00019178,2]
[400017148,1767023441034,-442.47098096,0.00019178,2]
[400017149,1767023441043,-489.5909872,0.00019178,2]
[400017150,1767023441052,-273.35091311,0.00019178,2]
[400017151,1767023441062,-500.0,0.00019178,2]
[400017152,1767023441071,-333.99912007,0.00019178,2]
[400017153,1767023441080,-421.70731069,0.00019178,2]
[400017154,1767023441088,-327.11223151,0.00019178,2]
[400017155,1767023441098,-319.68950835,0.00019178,2]
[400017156,1767023441111,-471.93883825,0.00019178,2]
[400017157,1767023441121,-231.02510062,0.00019178,2]
[400017158,1767023441130,-596.55559848,0.00019178,2]
[400017159,1767023441140,-240.99321294,0.00019178,2]
[400017160,1767023441149,-486.63011465,0.00019178,2]
[400017161,1767023441159,-294.57638844,0.00019178,2]
[400017162,1767023441168,-186.48937392,0.00019178,2]
[400017163,1767023441178,-331.17439079,0.00019178,2]
[400017164,1767023441188,-277.6938934,0.00019178,2]
[400017165,1767023441197,-500.0,0.00019178,2]
[400017166,1767023441207,-449.82536442,0.00019178,2]
[400017167,1767023441216,-492.95701342,0.00019178,2]
[400017168,1767023441225,-268.15903385,0.00019178,2]
[400017169,1767023441236,-681.99,0.00019178,2]
[400017170,1767023441246,-480.0,0.00019178,2]
[400017171,1767023441255,-486.28780482,0.00019178,2]
[400017172,1767023441264,-203.45973011,0.00019178,2]
[400017173,1767023441273,-501.19543339,0.00019178,2]
[400017174,1767023441282,-484.69795904,0.00019178,2]
[400017175,1767023441291,-511.89011642,0.00019178,2]
[400017176,1767023441300,-424.72070765,0.00019178,2]
[400017177,1767023441311,-194.87945958,0.00019178,2]
[400017178,1767023441320,-278.49487928,0.00019178,2]
[400017179,1767023441329,-487.86563401,0.00019178,2]
[400017180,1767023441338,-338.3045025,0.00019178,2]
[400017181,1767023441347,-199.50718454,0.00019178,2]
[400017182,1767023441356,-500.0,0.00019178,2]
[400017183,1767023441365,-332.28303991,0.00019178,2]
[400017184,1767023441374,-327.50837283,0.00019178,2]
[400017185,1767023441383,-477.19724969,0.00019178,2]
[400017186,1767023441392,-327.08881678,0.00019178,2]
[400017187,1767023441401,-205.57380574,0.00019178,2]
[400017188,1767023441411,-214.56132807,0.00019178,2]
[400017189,1767023441421,-407.47489559,0.00019178,2]
[400017190,1767023441430,-446.11338356,0.00019178,2]
[400017191,1767023441439,-282.47239194,0.00019178,2]
[400017192,1767023441448,-372.81822915,0.00019178,2]
[400017193,1767023441457,-459.55961902,0.00019178,2]
[400017194,1767023441467,-370.21932107,0.00019178,2]
[400017195,1767023441476,-229.00132958,0.00019178,2]
[400017196,1767023441487,-410.54004209,0.00019178,2]
[400017197,1767023441497,-252.80567883,0.00019178,2]
[400017198,1767023441506,-229.40932393,0.00019178,2]
[400017199,1767023441515,-236.94054092,0.00019178,2]
[400017200,1767023441524,-231.26445658,0.00019178,2]
[400017201,1767023441534,-495.94160882,0.00019178,2]
[400017202,1767023441543,-161.30574498,0.00019178,2]
[400017203,1767023441552,-622.69121472,0.00019178,2]
[400017204,1767023441562,-346.19948498,0.00019178,2]
[400017205,1767023441571,-500.0,0.00019178,2]
[400017206,1767023441581,-288.23939754,0.00019178,2]
[400017207,1767023441591,-241.60322333,0.00019178,2]
[400017208,1767023441600,-486.66236312,0.00019178,2]
[400017209,1767023441609,-500.0,0.00019178,2]
[400017210,1767023441619,-430.81365295,0.00019178,2]
[400017211,1767023441629,-333.56161096,0.00019178,2]
[400017212,1767023441639,-1989.21,0.00019178,2]
[400017213,1767023441648,-461.30514034,0.00019178,2]
[400017214,1767023441657,-350.93019086,0.00019178,2]
[400017215,1767023441667,-170.04860205,0.00019178,2]
[400017216,1767023441676,-500.0,0.00019178,2]
[400017217,1767023441685,-395.71561786,0.00019178,2]
[400017218,1767023441695,-225.73156657,0.00019178,2]
[400017219,1767023441705,-496.33962389,0.00019178,2]
[400017220,1767023441714,-500.0,0.00019178,2]
[400017221,1767023441724,-423.95359119,0.00019178,2]
[400017222,1767023441734,-184.33391286,0.00019178,2]
[400017223,1767023441743,-500.0,0.00019178,2]
[400017224,1767023441752,-178.50369212,0.00019178,2]
[400017225,1767023441762,-500.0,0.00019178,2]
[400017226,1767023441771,-370.63190419,0.00019178,2]
[400017227,1767023441780,-500.0,0.00019178,2]
[400017228,1767023441789,-500.0,0.00019178,2]
[400017229,1767023441799,-195.74438465,0.00019178,2]
[400017230,1767023441808,-496.98851051,0.00019178,2]
[400017231,1767023441818,-500.0,0.00019178,2]
[400017232,1767023441827,-500.0,0.00019178,2]
[400017233,1767023441837,-426.86495862,0.00019178,2]
[400017234,1767023441846,-500.0,0.00019178,2]
[400017235,1767023441855,-500.99596563,0.00019178,2]
[400017236,1767023441864,-500.0,0.00019178,2]
[400017237,1767023441873,-538.10671884,0.00019178,2]
[400017238,1767023441883,-491.37863043,0.00019178,2]
[400017239,1767023441892,-512.09352173,0.00019178,2]
[400017240,1767023441902,-540.44375359,0.00019178,2]
[400017241,1767023441911,-529.67556435,0.00019178,2]
[400017242,1767023441920,-306.74492455,0.00019178,2]
[400017243,1767023441930,-488.28774234,0.00019178,2]
[400017244,1767023441939,-500.0,0.00019178,2]
[400017245,1767023441948,-363.63724967,0.00019178,2]
[400017246,1767023441957,-273.51615063,0.00019178,2]
[400017247,1767023441966,-500.0,0.00019178,2]
[400017248,1767023441975,-406.98709601,0.00019178,2]
[400017249,1767023441986,-500.0,0.00019178,2]
[400017250,1767023441995,-500.0,0.00019178,2]
[400017251,1767023442005,-500.0,0.00019178,2]
[400017252,1767023442014,-255.36194022,0.00019178,2]
[400017253,1767023442025,-349.44841034,0.00019178,2]
[400017254,1767023442036,-610.95408846,0.00019178,2]
[400017255,1767023442045,-443.82116466,0.00019178,2]
[400017256,1767023442054,-186.37266074,0.00019178,2]
[400017257,1767023442063,-500.0,0.00019178,2]
[400017258,1767023442074,-500.0,0.00019178,2]
[400017259,1767023442083,-456.75047125,0.00019178,2]
[400017260,1767023442092,-500.0,0.00019178,2]
[400017261,1767023442104,-250.86157752,0.00019178,2]
[400017262,1767023442114,-268.02262656,0.00019178,2]
[400017263,1767023442123,-368.0625331,0.00019178,2]
[400017264,1767023442133,-419.21827466,0.00019178,2]
[400017265,1767023442142,-573.02929433,0.00019178,2]
[400017266,1767023442152,-403.68063183,0.00019178,2]
[400017267,1767023442161,-501.7554646,0.00019178,2]
[400017268,1767023442170,-500.0,0.00019178,2]
[400017269,1767023442179,-497.71228405,0.00019178,2]
[400017270,1767023442189,-500.0,0.00019178,2]
[400017271,1767023442198,-561.91723085,0.00019178,2]
[400017272,1767023442207,-500.0,0.00019178,2]
[400017273,1767023442216,-538.10185872,0.00019178,2]
[400017274,1767023442225,-506.42329108,0.00019178,2]
[400017275,1767023442235,-314.14014211,0.00019178,2]
[400017276,1767023442245,-539.0850877,0.00019178,2]
[400017277,1767023442254,-420.23607407,0.00019178,2]
[400017278,1767023442263,-336.11535103,0.00019178,2]
[400017279,1767023442272,-500.0,0.00019178,2]
[400017280,1767023442281,-500.0,0.00019178,2]
[400017281,1767023442291,-215.83814389,0.00019178,2]
[400017282,1767023442300,-221.67463703,0.00019178,2]
[400017283,1767023442309,-634.2289801,0.00019178,2]
[400017284,1767023442318,-365.10181785,0.00019178,2]
[400017285,1767023442328,-477.6934302,0.00019178,2]
[400017286,1767023442337,-487.77119636,0.00019178,2]
[400017287,1767023442346,-485.56870717,0.00019178,2]
[400017288,1767023442355,-228.09003205,0.00019178,2]
[400017289,1767023442365,-239.31624536,0.00019178,2]
[400017290,1767023442376,-488.15692853,0.00019178,2]
[400017291,1767023442387,-434.26386451,0.00019178,2]
[400017292,1767023442396,-488.48967991,0.00019178,2]
[400017293,1767023442406,-376.73083576,0.00019178,2]
[400017294,1767023442416,-500.0,0.00019178,2]
[400017295,1767023442425,-203.35647701,0.00019178,2]
[400017296,1767023442434,-187.90611098,0.00019178,2]
[400017297,1767023442444,-268.64102064,0.00019178,2]
[400017298,1767023442453,-290.15325278,0.00019178,2]
[400017299,1767023442462,-182.03330599,0.00019178,2]
[400017300,1767023442471,-465.70568753,0.00019178,2]
[400017301,1767023442483,-358.42368919,0.00019178,2]
[400017302,1767023442492,-315.15556904,0.00019178,2]
[400017303,1767023442502,-323.76444914,0.00019178,2]
[400017304,1767023442511,-461.88261165,0.00019178,2]
[400017305,1767023442521,-1000.0,0.00019178,2]
[400017306,1767023442530,-496.84809073,0.00019178,2]
[400017307,1767023442540,-500.0,0.00019178,2]
[400017308,1767023442549,-178.31606175,0.00019178,2]
[400017309,1767023442558,-500.0,0.00019178,2]
[400017310,1767023442567,-500.0,0.00019178,2]
[400017311,1767023442577,-275.06643056,0.00019178,2]
[400017312,1767023442586,-480.20810443,0.00019178,2]
[400017313,1767023442595,-151.0,0.00019178,2]
[400017314,1767023442604,-409.43073117,0.00019178,2]
[400017315,1767023442614,-151.0,0.00019178,2]
[400017316,1767023442623,-487.22662135,0.00019178,2]
[400017317,1767023442632,-200.01707268,0.00019178,2]
[400017318,1767023442643,-579.90981318,0.00019178,2]
[400017319,1767023442653,-211.21437953,0.00019178,2]
[400017320,1767023442662,-429.41639559,0.00019178,2]
[400017321,1767023442672,-360.97170815,0.00019178,2]
[400017322,1767023442681,-224.13773528,0.00019178,2]
[400017323,1767023442690,-184.817009,0.00019178,2]
[400017324,1767023442699,-231.94031787,0.00019178,2]
[400017325,1767023442709,-222.57135866,0.00019178,2]
[400017326,1767023442719,-495.84474953,0.00019178,2]
[400017327,1767023442728,-181.60437423,0.00019178,2]
[400017328,1767023442739,-391.3718607,0.00019178,2]
[400017329,1767023442748,-488.04044067,0.00019178,2]
[400017330,1767023442758,-462.54292197,0.00019178,2]
[400017331,1767023442767,-230.11756583,0.00019178,2]
[400017332,1767023442775,-426.82751742,0.00019178,2]
[400017333,1767023442785,-228.49898026,0.00019178,2]
[400017334,1767023442794,-461.85768299,0.00019178,2]
[400017335,1767023442803,-500.0,0.00019178,2]
[400017336,1767023442814,-150.04324671,0.00019178,2]
[400017337,1767023442823,-316.49095567,0.00019178,2]
[400017338,1767023442832,-429.31446917,0.00019178,2]
[400017339,1767023442841,-500.0,0.00019178,2]
[400017340,1767023442851,-291.75959071,0.00019178,2]
[400017341,1767023442860,-210.28506365,0.00019178,2]
[400017343,1767023442869,-506.29868568,0.00019178,2]
[400017345,1767023442877,-299.02872134,0.00019178,2]
[400017346,1767023442886,-248.92613817,0.00019178,2]
[400017348,1767023442895,-262.87676403,0.00019178,2]
[400017349,1767023442904,-168.52666437,0.00019178,2]
[400017350,1767023442913,-167.89015727,0.00019178,2]
[400017352,1767023442923,-150.4825193,0.00019178,2]
[400017353,1767023442932,-230.99483231,0.00019178,2]
[400017354,1767023442941,-478.6229675,0.00019178,2]
[400017355,1767023442949,-154.63759183,0.00019178,2]
[400017357,1767023442958,-253.63102759,0.00019178,2]
[400017359,1767023442968,-526.9478121,0.00019178,2]
[400017360,1767023442977,-281.44204914,0.00019178,2]
[400017362,1767023442989,-500.0,0.00019178,2]
[400017364,1767023442999,-456.52226619,0.00019178,2]
[400017366,1767023443008,-349.87778429,0.00019178,2]
[400017368,1767023443017,-498.08828265,0.00019178,2]
[400017370,1767023443030,-268.16933491,0.00019178,2]
[400017372,1767023443041,-10371.66,0.00019178,2]
[400017373,1767023443051,-172.9864347,0.00019178,2]
[400017374,1767023443061,-188.57203443,0.00019178,2]
[400017375,1767023443071,-278.49623661,0.00019178,2]
[400017376,1767023443080,-404.6474823,0.00019178,2]
[400017377,1767023443091,-250.55772468,0.00019178,2]
[400017378,1767023443101,-494.78835906,0.00019178,2]
[400017379,1767023443110,-516.4273939,0.00019178,2]
[400017380,1767023443119,-405.47737161,0.00019178,2]
[400017381,1767023443128,-598.60330821,0.00019178,2]
[400017382,1767023443138,-249.77890113,0.00019178,2]
[400017383,1767023443147,-273.04367163,0.00019178,2]
[400017384,1767023443156,-199.91617465,0.00019178,2]
[400017385,1767023443166,-342.84833664,0.00019178,2]
[400017386,1767023443175,-273.4647335,0.00019178,2]
[400017387,1767023443184,-444.45530115,0.00019178,2]
[400017388,1767023443193,-370.06593705,0.00019178,2]
[400017389,1767023443203,-226.63513394,0.00019178,2]
[400017390,1767023443212,-262.71392186,0.00019178,2]
[400017391,1767023443221,-500.0,0.00019178,2]
[400017392,1767023443230,-447.25692417,0.00019178,2]
[400017393,1767023443239,-385.30648605,0.00019178,2]
[400017394,1767023443248,-287.89513794,0.00019178,2]